bitfinex/quotes_BTCUSD_20251214
["timestamp","ask_amount","ask_price","bid_price","bid_amount"]
[1765731961484,0.002,88948.0,88947.0,0.39318995]
[1765731967349,0.002,88948.0,88947.0,2.39318995]
[1765731967555,0.002,88948.0,88947.0,2.68388995]
[1765731967719,0.00054843,88948.0,88947.0,2.68388995]
[1765731968328,0.00054843,88948.0,88947.0,1.61527295]
[1765731968932,0.01123999,88968.0,88965.0,0.23604743]
[1765731969154,0.01123987,88969.0,88966.0,0.01124024]
[1765731969364,0.01123987,88969.0,88965.0,0.01124037]
[1765731969365,0.23604165,88968.0,88967.0,0.07266]
[1765731969534,0.23603784,88969.0,88967.0,0.0905]
[1765731969733,0.23602746,88973.0,88968.0,0.3195695]
[1765731969734,0.01123949,88972.0,88968.0,0.3195695]
[1765731969956,0.01123961,88971.0,88968.0,0.04720999]
[1765731970192,0.23603405,88971.0,88969.0,0.07266]
[1765731970331,0.23602008,88976.0,88969.0,0.07266]
[1765731970332,0.01123923,88974.0,88971.0,0.01123961]
[1765731970773,0.01123923,88974.0,88973.0,0.08353]
[1765731971280,0.01123923,88974.0,88973.0,0.1899358]
[1765731971498,0.01123898,88976.0,88973.0,0.1899358]
[1765731971697,0.23601472,88978.0,88974.0,0.12022]
[1765731971843,0.01123885,88977.0,88974.0,0.12022]
[1765731972039,0.01123885,88977.0,88976.0,0.04756]
[1765731972255,0.0112386,88979.0,88976.0,0.05879898]
[1765731972459,0.0112386,88979.0,88978.0,0.04756]
[1765731973145,0.00024389,88981.0,88979.0,0.22476977]
[1765731973339,0.23786412,88981.0,88978.0,0.03374265]
[1765731973497,0.23601073,88979.0,88975.0,0.02907911]
[1765731973693,0.01123873,88978.0,88976.0,0.07266]
[1765731973897,0.01123873,88978.0,88976.0,0.10640265]
[1765731974092,0.01123873,88978.0,88975.0,0.01784]
[1765731974093,0.01123873,88978.0,88977.0,0.12022]
[1765731974302,0.01123873,88978.0,88977.0,0.15396265]
[1765731975007,0.01423873,88978.0,88977.0,0.15396265]
[1765731975213,0.01523873,88978.0,88977.0,0.15396265]
[1765731975413,0.004,88978.0,88977.0,0.15396265]
[1765731976487,0.001,88978.0,88977.0,0.15396265]
[1765731976763,0.004,88978.0,88977.0,0.15396265]
[1765731977014,0.003,88978.0,88977.0,0.15396265]
[1765731977202,0.22477229,88979.0,88977.0,0.15396265]
[1765731977335,0.002,88978.0,88977.0,0.08130265]
[1765731977531,0.01223873,88978.0,88975.0,0.02907911]
[1765731977731,0.01123873,88978.0,88977.0,0.04756]
[1765731977962,0.001,88978.0,88977.0,0.08130265]
[1765731978215,0.002,88978.0,88977.0,0.15396265]
[1765731978348,0.002,88978.0,88977.0,0.08130265]
[1765731979189,0.002,88978.0,88977.0,0.03374265]
[1765731980136,0.12201,88978.0,88977.0,0.03374265]
[1765731980378,0.01124125,88958.0,88952.0,0.03597]
[1765731980585,0.01124125,88958.0,88945.0,0.07266]
[1765731980586,0.01124277,88946.0,88945.0,0.07266]
[1765731980796,0.01124277,88946.0,88945.0,0.09058667]
[1765731980997,0.01124252,88948.0,88945.0,0.17411667]
[1765731981200,0.01124252,88948.0,88945.0,0.12655667]
[1765731981399,0.01124252,88948.0,88947.0,0.04756]
[1765731981783,0.01124252,88948.0,88947.0,0.12022]
[1765731983281,0.01124252,88948.0,88947.0,0.12122]
[1765731983685,0.01124252,88948.0,88947.0,0.12222]
[1765731985292,0.01124252,88948.0,88947.0,0.002]
[1765731985293,0.13286539,88948.0,88947.0,0.002]
[1765731985513,0.05849539,88948.0,88947.0,0.002]
[1765731985718,0.01285539,88948.0,88947.0,0.002]
[1765731985922,0.01285539,88948.0,88947.0,0.12222]
[1765731986247,0.01285539,88948.0,88947.0,0.12022]
[1765731986440,0.01885539,88948.0,88947.0,0.12022]
[1765731986663,0.01885539,88948.0,88947.0,0.04756]
[1765731987605,0.01885539,88948.0,88947.0,0.11706]
[1765731987606,0.006,88948.0,88947.0,0.11706]
[1765731988104,0.006,88948.0,88947.0,0.12830189]
[1765731988682,0.003,88948.0,88947.0,0.12830189]
[1765731988885,0.004,88948.0,88947.0,0.12830189]
[1765731990183,0.001,88948.0,88947.0,0.12830189]
[1765731990392,0.003,88948.0,88947.0,0.12830189]
[1765731995761,0.003,88948.0,88947.0,2.41900189]
[1765731996569,0.002,88948.0,88947.0,2.41900189]
[1765731996742,0.01123848,88980.0,88976.0,0.01123898]
[1765731996959,0.01285135,88980.0,88979.0,0.08281]
[1765731997386,0.00161287,88980.0,88979.0,0.18605268]
[1765731998680,0.00561287,88980.0,88979.0,0.18605268]
[1765731999285,0.00861287,88980.0,88979.0,0.11655268]
[1765731999627,0.00861287,88980.0,88979.0,0.18605268]
[1765731999965,0.00461287,88980.0,88979.0,0.18605268]
[1765732000180,0.00561287,88980.0,88979.0,0.18605268]
[1765732000582,0.00461287,88980.0,88979.0,0.18605268]
[1765732001166,0.00561287,88980.0,88979.0,0.18605268]
[1765732001570,0.001,88980.0,88979.0,0.18605268]
[1765732002284,0.002,88980.0,88979.0,0.18605268]
[1765732002577,0.002,88980.0,88979.0,0.20389268]
[1765732002719,0.001,88980.0,88979.0,0.20389268]
[1765732003121,0.00024389,88981.0,88980.0,0.22476961]
[1765732003317,0.00024389,88981.0,88980.0,0.34146961]
[1765732004769,0.00224389,88981.0,88980.0,0.34146961]
[1765732005082,0.00324389,88981.0,88980.0,0.34146961]
[1765732008933,0.00324389,88981.0,88980.0,0.37520785]
[1765732010919,0.00324389,88981.0,88980.0,0.30570785]
[1765732011482,0.00324389,88981.0,88980.0,0.37520785]
[1765732013524,0.00224389,88981.0,88980.0,0.37520785]
[1765732014321,0.00024389,88981.0,88980.0,0.37520785]
[1765732014892,0.00024389,88981.0,88980.0,0.34146961]
[1765732015725,0.00024389,88981.0,88980.0,0.35930961]
[1765732016377,0.00185676,88981.0,88980.0,0.06504]
[1765732017693,0.00485676,88981.0,88980.0,0.06504]
[1765732018110,0.00485676,88981.0,88980.0,0.01784]
[1765732021122,0.00485676,88981.0,88980.0,0.12496]
[1765732021567,0.00485676,88981.0,88980.0,0.06071]
[1765732022616,0.00485676,88981.0,88979.0,0.26038008]
[1765732022617,0.01123848,88980.0,88970.0,0.23603338]
[1765732022768,0.01123848,88980.0,88975.0,0.01784]
[1765732022968,0.23601073,88979.0,88975.0,0.25386038]
[1765732023177,0.01123873,88978.0,88975.0,0.25386038]
[1765732023442,0.01123873,88978.0,88975.0,0.31811038]
[1765732023624,0.00285676,88981.0,88977.0,0.22477718]
[1765732023625,0.00185676,88981.0,88977.0,0.22477718]
[1765732023849,0.00024389,88981.0,88980.0,0.04287]
[1765732024241,0.00024389,88981.0,88980.0,0.10712]
[1765732026162,0.00224389,88981.0,88980.0,0.10712]
[1765732026773,0.00324389,88981.0,88980.0,0.10712]
[1765732029603,0.00124389,88981.0,88980.0,0.10712]
[1765732029796,0.00224389,88981.0,88980.0,0.10712]
[1765732032937,0.00224389,88981.0,88980.0,0.04287]
[1765732033088,0.00224389,88981.0,88980.0,0.10712]
[1765732033297,0.00124389,88981.0,88980.0,0.10712]
[1765732033608,0.00224389,88981.0,88980.0,0.10712]
[1765732036692,0.00224389,88981.0,88977.0,0.2360146]
[1765732036900,0.00224389,88981.0,88977.0,0.07548885]
[1765732037327,0.01348224,88981.0,88978.0,0.23601292]
[1765732037538,0.00124389,88981.0,88978.0,0.23601292]
[1765732037991,0.00224389,88981.0,88979.0,0.22477031]
[1765732038203,0.00124389,88981.0,88979.0,0.22477031]
[1765732038412,0.00124389,88981.0,88979.0,0.28902031]
[1765732038639,0.00224389,88981.0,88980.0,0.10712]
[1765732038850,0.00124389,88981.0,88980.0,0.10712]
[1765732039705,0.00224389,88981.0,88980.0,0.10712]
[1765732039987,0.00124389,88981.0,88980.0,0.10712]
[1765732040198,0.00024389,88981.0,88980.0,0.10712]
[1765732040411,0.00224389,88981.0,88980.0,0.12496]
[1765732042557,0.00224389,88981.0,88980.0,1.26001]
[1765732043221,0.00124389,88981.0,88980.0,1.26001]
[1765732043626,0.00124389,88981.0,88980.0,1.26101]
[1765732044571,0.00024389,88981.0,88980.0,1.26101]
[1765732045022,0.00024389,88981.0,88980.0,1.26201]
[1765732048082,6.734e-05,88981.0,88980.0,1.55271]
[1765732048525,6.734e-05,88981.0,88980.0,1.53487]
[1765732048698,6.734e-05,88981.0,88980.0,0.237426]
[1765732048898,6.734e-05,88981.0,88980.0,0.04487]
[1765732049092,6.734e-05,88981.0,88980.0,0.0198]
[1765732049294,6.734e-05,88981.0,88980.0,0.0188]
[1765732049702,6.734e-05,88981.0,88980.0,0.0198]
[1765732050202,6.734e-05,88981.0,88980.0,0.0188]
[1765732050617,0.00106734,88981.0,88980.0,0.0188]
[1765732050845,0.00106734,88981.0,88980.0,0.0178]
[1765732051194,0.00306734,88981.0,88980.0,0.0178]
[1765732053613,0.00306734,88981.0,88980.0,0.05585]
[1765732053812,0.00306734,88981.0,88980.0,0.1163]
[1765732055389,0.00306734,88981.0,88980.0,0.0985]
[1765732055597,0.00306734,88981.0,88980.0,0.1163]
[1765732059569,0.00306734,88981.0,88980.0,0.14263]
[1765732071955,0.50306734,88981.0,88980.0,0.14263]
[1765732074290,0.50468021,88981.0,88980.0,0.0178]
[1765732074491,0.60853021,88981.0,88980.0,0.0178]
[1765732075095,0.60853021,88981.0,88971.0,0.23603124]
[1765732075096,0.01123999,88968.0,88962.0,0.06045]
[1765732075410,0.01123999,88968.0,88960.0,0.43082836]
[1765732075411,0.22480498,88966.0,88960.0,0.41958736]
[1765732075706,0.01124113,88959.0,88958.0,0.0178]
[1765732075904,0.01124113,88959.0,88956.0,0.42405887]
[1765732075905,0.22481761,88961.0,88956.0,0.03407151]
[1765732076105,0.22481761,88961.0,88956.0,0.25889946]
[1765732076306,0.23605849,88961.0,88958.0,0.03374868]
[1765732076690,0.22482219,88960.0,88958.0,0.03374868]
[1765732076872,0.002,88959.0,88958.0,0.03374868]
[1765732077079,0.09500287,88959.0,88958.0,0.03374868]
[1765732077282,0.09500287,88959.0,88924.0,0.14079985]
[1765732077283,0.22486058,88944.0,88940.0,0.42873901]
[1765732077501,0.0112429,88945.0,88943.0,0.0178]
[1765732077899,0.2360983,88946.0,88943.0,0.05155419]
[1765732078049,0.23609897,88946.0,88943.0,0.05155419]
[1765732078890,0.26322941,88950.0,88946.0,0.01124277]
[1765732079089,0.23608941,88950.0,88946.0,0.01124277]
[1765732080392,0.01124227,88950.0,88947.0,0.01124265]
[1765732080597,0.01124189,88953.0,88948.0,0.01124252]
[1765732080806,0.01124189,88953.0,88949.0,0.01124239]
[1765732081475,0.01124201,88952.0,88949.0,0.01124239]
[1765732081788,0.01124176,88954.0,88950.0,0.01124227]
[1765732081942,0.01124163,88955.0,88952.0,0.01124201]
[1765732082141,0.01124176,88954.0,88951.0,0.01124214]
[1765732082907,0.23607707,88954.0,88950.0,0.01813227]
[1765732083101,0.01124201,88952.0,88948.0,0.01124252]
[1765732083687,0.01124265,88947.0,88944.0,0.0178]
[1765732083885,0.22485553,88946.0,88944.0,0.0178]
[1765732084086,0.23609565,88947.0,88944.0,0.0178]
[1765732084292,0.23606918,88957.0,88949.0,0.01124239]
[1765732084463,0.02714,88977.0,88952.0,0.22483952]
[1765732084464,0.01124151,88956.0,88952.0,0.22483952]
[1765732084665,0.01124151,88956.0,88949.0,0.01124239]
[1765732084666,0.22483278,88955.0,88949.0,0.01124239]
[1765732084868,0.01124189,88953.0,88950.0,0.01124227]
[1765732085078,0.01124189,88953.0,88950.0,0.03375069]
[1765732085513,0.002,88952.0,88950.0,0.03375069]
[1765732085717,0.22484289,88951.0,88950.0,0.03375069]
[1765732087028,0.22484289,88951.0,88950.0,0.07192069]
[1765732087029,0.001,88951.0,88950.0,0.07192069]
[1765732087214,0.002,88951.0,88950.0,0.03375069]
[1765732087663,0.002,88951.0,88950.0,0.12835069]
[1765732088216,0.002,88951.0,88950.0,0.3531961]
[1765732091025,0.002,88951.0,88950.0,0.6438961]
[1765732091762,0.001,88951.0,88950.0,0.6438961]
[1765732091962,0.001,88951.0,88950.0,0.6458961]
[1765732092181,0.23602429,88974.0,88950.0,0.6458961]
[1765732092182,0.01123923,88974.0,88971.0,0.01123961]
[1765732092389,0.01123923,88974.0,88971.0,0.03662961]
[1765732092602,0.01123923,88974.0,88971.0,0.02539]
[1765732092603,0.23602621,88974.0,88971.0,0.02539]
[1765732093271,0.23602621,88974.0,88971.0,0.08182]
[1765732093435,0.23802621,88974.0,88971.0,0.08182]
[1765732093836,0.24002621,88974.0,88971.0,0.08182]
[1765732094255,0.24163908,88974.0,88971.0,0.02539]
[1765732094574,0.0168521,88974.0,88971.0,0.02539]
[1765732094721,0.0168521,88974.0,88971.0,0.08182]
[1765732095163,0.0168521,88974.0,88971.0,0.02539]
[1765732095362,0.0168521,88974.0,88972.0,0.05643]
[1765732096243,0.0148521,88974.0,88972.0,0.05643]
[1765732096866,0.0168521,88974.0,88972.0,0.05643]
[1765732098872,0.00561287,88974.0,88972.0,0.05643]
[1765732099955,0.00561287,88974.0,88973.0,0.26295729]
[1765732100204,0.004,88974.0,88973.0,0.26295729]
[1765732100378,0.004,88974.0,88973.0,0.35312789]
[1765732100789,0.002,88974.0,88973.0,0.35312789]
[1765732101190,0.004,88974.0,88973.0,0.35312789]
[1765732101940,0.50006734,88981.0,88980.0,0.22476961]
[1765732102137,0.50006734,88981.0,88980.0,0.28965961]
[1765732102365,0.50006734,88981.0,88980.0,0.34608961]
[1765732103589,0.50006734,88981.0,88980.0,0.37982986]
[1765732111654,0.50006734,88981.0,88980.0,0.67052986]
[1765732112779,0.50006734,88981.0,88980.0,0.67252986]
[1765732113789,0.50006734,88981.0,88980.0,0.67352986]
[1765732114314,0.50006734,88981.0,88980.0,1.91586486]
[1765732116986,0.50006734,88981.0,88980.0,1.91486486]
[1765732117708,0.50006734,88981.0,88980.0,1.91886486]
[1765732118104,0.50006734,88981.0,88980.0,1.91686486]
[1765732118505,0.50006734,88981.0,88980.0,1.92086486]
[1765732124539,0.50006734,88981.0,88980.0,1.93866486]
[1765732138121,0.50006734,88981.0,88980.0,2.03961609]
[1765732138364,0.47450679,88981.0,88980.0,1.93866486]
[1765732139720,0.47420898,88981.0,88980.0,1.93866486]
[1765732140217,0.47420898,88981.0,88980.0,2.08706486]
[1765732141188,0.47420898,88981.0,88980.0,1.04337634]
[1765732141379,0.47420898,88981.0,88980.0,0.55402986]
[1765732141584,0.47420898,88981.0,88980.0,0.18086025]
[1765732141815,0.47420898,88981.0,88980.0,0.53087625]
[1765732142018,0.47420898,88981.0,88980.0,0.44447725]
[1765732142221,0.47420898,88981.0,88980.0,0.45147725]
[1765732142545,0.47420898,88981.0,88980.0,0.44847725]
[1765732142851,0.47420898,88981.0,88980.0,0.44647725]
[1765732143042,0.47420898,88981.0,88980.0,0.44447725]
[1765732143458,0.47520898,88981.0,88980.0,0.44447725]
[1765732143654,0.47520898,88981.0,88980.0,0.37733225]
[1765732150602,0.47520898,88981.0,88980.0,0.17286025]
[1765732150773,0.47520898,88981.0,88980.0,0.16511025]
[1765732150975,0.47520898,88981.0,88980.0,0.11643025]
[1765732151340,0.47520898,88981.0,88980.0,0.07826025]
[1765732151762,0.47520898,88981.0,88980.0,0.16212025]
[1765732154045,0.47520898,88981.0,88980.0,0.16312025]
[1765732154248,0.47520898,88981.0,88980.0,0.11444025]
[1765732154428,0.47520898,88981.0,88980.0,0.0188]
[1765732154628,0.47520898,88981.0,88980.0,0.0178]
[1765732155032,0.47682185,88981.0,88980.0,0.0178]
[1765732155457,0.47582185,88981.0,88980.0,0.0178]
[1765732157504,0.47782185,88981.0,88980.0,0.0178]
[1765732158718,0.47682185,88981.0,88980.0,0.0178]
[1765732159151,0.47782185,88981.0,88980.0,0.0178]
[1765732163956,0.56284185,88981.0,88980.0,0.0178]
[1765732164390,0.51127185,88981.0,88980.0,0.0178]
[1765732165495,0.56284185,88981.0,88980.0,0.0178]
[1765732167715,0.47782185,88981.0,88980.0,0.0178]
[1765732170741,0.70258893,88981.0,88980.0,0.0178]
[1765732170967,0.47782185,88981.0,88980.0,0.0178]
[1765732181342,0.47782185,88981.0,88980.0,0.09969]
[1765732181581,0.47782185,88981.0,88980.0,0.0178]
[1765732181737,0.23601838,88977.0,88974.0,0.0178]
[1765732181937,0.23601838,88977.0,88970.0,0.02903974]
[1765732181938,0.01123923,88974.0,88970.0,0.02903974]
[1765732182338,0.27884224,88975.0,88971.0,0.2360304]
[1765732182339,0.03344911,88975.0,88971.0,0.2360304]
[1765732183748,0.03344911,88975.0,88971.0,0.2370304]
[1765732184876,0.03344911,88975.0,88971.0,0.01223961]
[1765732185108,0.25823303,88975.0,88971.0,0.01223961]
[1765732185276,0.02407,88972.0,88971.0,0.001]
[1765732185496,0.22479234,88971.0,88970.0,0.0178]
[1765732186886,0.22679234,88971.0,88970.0,0.0178]
[1765732188120,0.22879234,88971.0,88970.0,0.0178]
[1765732189330,0.22879234,88971.0,88966.0,0.23604339]
[1765732189331,0.01124138,88957.0,88950.0,0.0483]
[1765732189560,0.011241,88960.0,88947.0,0.02297]
[1765732189561,0.02389,88958.0,88955.0,0.01124163]
[1765732189719,0.02389,88958.0,88957.0,0.22482772]
[1765732190076,0.01124075,88962.0,88958.0,0.23606644]
[1765732190382,0.01124075,88962.0,88958.0,0.01124125]
[1765732190383,0.01124088,88961.0,88958.0,0.01124125]
[1765732190514,0.01124062,88963.0,88959.0,0.2360638]
[1765732190712,0.0351305,88964.0,88961.0,0.01124088]
[1765732191888,0.001,88963.0,88961.0,0.01124088]
[1765732192027,0.0351305,88964.0,88961.0,0.01124088]
[1765732192230,0.001,88962.0,88960.0,0.011241]
[1765732192631,0.0371305,88964.0,88960.0,0.011241]
[1765732193026,0.23705339,88963.0,88960.0,0.011241]
[1765732193556,0.23605339,88963.0,88960.0,0.011241]
[1765732193762,0.01124075,88962.0,88959.0,0.01124113]
[1765732194165,0.01224075,88962.0,88959.0,0.01124113]
[1765732194388,0.01124075,88962.0,88959.0,0.01124113]
[1765732195029,0.01124075,88962.0,88958.0,0.01124125]
[1765732195467,0.01224075,88962.0,88958.0,0.01124125]
[1765732196207,0.01324075,88962.0,88958.0,0.01124125]
[1765732196836,0.002,88962.0,88961.0,0.02938]
[1765732197149,0.23805785,88962.0,88959.0,0.02179]
[1765732197493,0.011241,88960.0,88957.0,0.01124138]
[1765732197831,0.01124088,88961.0,88957.0,0.01124138]
[1765732198026,0.011241,88960.0,88956.0,0.23607]
[1765732198211,0.011241,88960.0,88957.0,0.01124138]
[1765732198826,0.01124113,88959.0,88956.0,0.01124151]
[1765732199486,0.23606405,88959.0,88956.0,0.01124151]
[1765732200322,0.01124113,88959.0,88956.0,0.01124151]
[1765732200501,0.23607176,88956.0,88953.0,0.06346]
[1765732200705,0.23607176,88956.0,88953.0,0.0178]
[1765732200706,0.05294,88954.0,88953.0,0.0178]
[1765732200910,0.22483473,88955.0,88953.0,0.0178]
[1765732201291,0.24773473,88955.0,88953.0,0.0178]
[1765732201494,0.24773473,88955.0,88934.0,0.22488563]
[1765732201495,0.0112429,88945.0,88937.0,0.22487644]
[1765732201696,0.01124277,88946.0,88943.0,0.01124315]
[1765732201912,0.01124277,88946.0,88940.0,0.2248703]
[1765732202147,0.0112429,88945.0,88941.0,0.0178]
[1765732202354,0.01124302,88944.0,88941.0,0.0178]
[1765732202731,0.2361043,88944.0,88941.0,0.0178]
[1765732203647,0.2371043,88944.0,88941.0,0.0178]
[1765732203845,0.01224302,88944.0,88941.0,0.0290434]
[1765732204787,0.01224302,88944.0,88938.0,8.667e-05]
[1765732204788,0.22487257,88940.0,88938.0,8.667e-05]
[1765732204920,0.02987,88939.0,88938.0,8.667e-05]
[1765732205124,0.07696287,88939.0,88938.0,8.667e-05]
[1765732206420,0.41768126,88939.0,88938.0,8.667e-05]
[1765732206846,0.42068126,88939.0,88938.0,8.667e-05]
[1765732207288,0.42368126,88939.0,88938.0,8.667e-05]
[1765732207810,0.43848126,88939.0,88938.0,8.667e-05]
[1765732207982,0.44048126,88939.0,88938.0,8.667e-05]
[1765732208405,0.44448126,88939.0,88938.0,8.667e-05]
[1765732208992,0.44048126,88939.0,88938.0,8.667e-05]
[1765732209358,0.44448126,88939.0,88938.0,8.667e-05]
[1765732209560,0.37666287,88939.0,88938.0,8.667e-05]
[1765732209791,0.01061287,88939.0,88938.0,8.667e-05]
[1765732210386,0.01061287,88939.0,88938.0,0.02946667]
[1765732210587,0.01061287,88939.0,88938.0,0.07512667]
[1765732210766,0.00561287,88939.0,88938.0,0.07512667]
[1765732211384,0.006,88939.0,88938.0,0.07512667]
[1765732211583,0.002,88939.0,88938.0,0.07512667]
[1765732211915,0.006,88939.0,88938.0,0.07512667]
[1765732212322,0.002,88939.0,88938.0,0.07512667]
[1765732212522,0.002,88939.0,88938.0,0.02946667]
[1765732212744,0.004,88939.0,88938.0,0.02946667]
[1765732212945,0.004,88939.0,88938.0,0.07512667]
[1765732213324,0.002,88939.0,88938.0,8.667e-05]
[1765732213527,0.003,88939.0,88938.0,8.667e-05]
[1765732213781,0.003,88939.0,88938.0,0.02946667]
[1765732214522,0.003,88939.0,88938.0,0.07512667]
[1765732216816,0.003,88939.0,88938.0,0.02946667]
[1765732217139,0.003,88939.0,88938.0,0.07512667]
[1765732219047,0.003,88939.0,88938.0,0.01788667]
[1765732219313,0.07996287,88939.0,88938.0,8.667e-05]
[1765732219552,0.42068126,88939.0,88938.0,8.667e-05]
[1765732220393,0.42068126,88939.0,88916.0,0.0004]
[1765732220394,0.56564725,88917.0,88916.0,0.0004]
[1765732220616,0.65879725,88917.0,88916.0,0.00078576]
[1765732221503,0.65879725,88917.0,88887.0,0.0004]
[1765732221505,0.51566428,88903.0,88887.0,0.0004]
[1765732221733,0.85293647,88903.0,88902.0,0.00275581]
[1765732221937,0.77162374,88903.0,88902.0,0.00123005]
[1765732222138,0.77612841,88903.0,88902.0,0.00123005]
[1765732222349,0.75832841,88903.0,88902.0,0.00123005]
[1765732222547,0.77162374,88903.0,88902.0,0.00123005]
[1765732222774,0.75994137,88903.0,88902.0,0.00123005]
[1765732222978,0.77774137,88903.0,88902.0,0.00123005]
[1765732223674,0.76494137,88903.0,88902.0,0.00123005]
[1765732223877,0.78274137,88903.0,88902.0,0.00123005]
[1765732224087,0.77774137,88903.0,88902.0,0.00123005]
[1765732224311,0.78174137,88903.0,88902.0,0.00123005]
[1765732224686,0.76394137,88903.0,88902.0,0.00123005]
[1765732225013,0.78023661,88903.0,88902.0,0.00123005]
[1765732226192,0.64964554,88903.0,88902.0,0.00123005]
[1765732226392,0.66744554,88903.0,88902.0,0.00123005]
[1765732226592,0.59962715,88903.0,88902.0,0.00123005]
[1765732226813,0.61742715,88903.0,88902.0,0.00123005]
[1765732227223,0.66744554,88903.0,88902.0,0.00123005]
[1765732227767,0.66044554,88903.0,88902.0,0.00123005]
[1765732227973,0.66844554,88903.0,88902.0,0.00123005]
[1765732229203,0.37774554,88903.0,88902.0,0.00123005]
[1765732230455,0.35994554,88903.0,88902.0,0.00123005]
[1765732231053,0.26444715,88903.0,88902.0,0.00123005]
[1765732231249,0.30801715,88903.0,88902.0,0.00123005]
[1765732233017,0.35803554,88903.0,88902.0,0.00123005]
[1765732233219,0.76152661,88903.0,88902.0,0.00123005]
[1765732233637,0.64873554,88903.0,88902.0,0.00123005]
[1765732233856,0.66653554,88903.0,88902.0,0.00123005]
[1765732235102,0.59871715,88903.0,88902.0,0.00123005]
[1765732235328,0.00961287,88903.0,88902.0,0.00123005]
[1765732235550,0.00961287,88903.0,88902.0,0.07329005]
[1765732235769,0.008,88903.0,88902.0,0.07329005]
[1765732236235,0.004,88903.0,88902.0,0.07329005]
[1765732236454,0.23617835,88916.0,88913.0,0.01124694]
[1765732236455,0.01124656,88916.0,88913.0,0.01124694]
[1765732236687,0.23617489,88918.0,88915.0,0.03846]
[1765732237175,0.01124606,88920.0,88915.0,0.03846]
[1765732237176,0.23616947,88920.0,88915.0,0.04970669]
[1765732237832,0.01124631,88918.0,88915.0,0.04970669]
[1765732238052,0.01224631,88918.0,88915.0,0.03846]
[1765732238292,0.01124631,88918.0,88915.0,0.03846]
[1765732238650,0.01124631,88918.0,88915.0,0.00891]
[1765732238863,0.01124631,88918.0,88914.0,0.01124682]
[1765732239204,0.01324631,88918.0,88914.0,0.01124682]
[1765732239446,0.002,88918.0,88917.0,0.02955]
[1765732239635,0.01124505,88928.0,88925.0,0.01124543]
[1765732239837,0.01124479,88930.0,88927.0,0.01124517]
[1765732240161,0.01124467,88931.0,88929.0,0.02955]
[1765732240760,0.23613776,88932.0,88929.0,0.02955]
[1765732240761,0.01124441,88933.0,88929.0,0.25444828]
[1765732241184,0.01124441,88933.0,88929.0,0.02955]
[1765732241362,0.01124441,88933.0,88930.0,0.01124479]
[1765732241557,0.23613372,88933.0,88929.0,0.04091067]
[1765732241758,0.001,88931.0,88929.0,0.23625903]
[1765732241962,0.25363598,88930.0,88929.0,0.00011575]
[1765732242508,0.29720598,88930.0,88929.0,0.00011575]
[1765732242640,0.29881885,88930.0,88929.0,0.00011575]
[1765732242850,0.07392287,88930.0,88929.0,0.00011575]
[1765732243246,0.03035287,88930.0,88929.0,0.00011575]
[1765732243874,0.03135287,88930.0,88929.0,0.00011575]
[1765732244076,0.03235287,88930.0,88929.0,0.00011575]
[1765732244877,0.07592287,88930.0,88929.0,0.00011575]
[1765732246139,0.00361287,88930.0,88929.0,0.07217575]
[1765732246491,0.00361287,88930.0,88929.0,0.02966575]
[1765732246727,0.00361287,88930.0,88929.0,0.00011575]
[1765732247088,0.03235287,88930.0,88929.0,0.00011575]
[1765732247316,0.12594126,88930.0,88929.0,0.00011575]
[1765732247552,0.41664126,88930.0,88929.0,0.00011575]
[1765732248515,0.41564126,88930.0,88929.0,0.00011575]
[1765732248723,0.41964126,88930.0,88929.0,0.00011575]
[1765732249254,0.41464126,88930.0,88929.0,0.00011575]
[1765732249664,0.42164126,88930.0,88929.0,0.00011575]
[1765732249888,0.41864126,88930.0,88929.0,0.00011575]
[1765732250242,0.43644126,88930.0,88929.0,0.00011575]
[1765732250455,0.42264126,88930.0,88929.0,0.00011575]
[1765732250672,0.44044126,88930.0,88929.0,0.00011575]
[1765732251017,0.43644126,88930.0,88929.0,0.00011575]
[1765732251220,0.43244126,88930.0,88929.0,0.00011575]
[1765732251448,0.43444126,88930.0,88929.0,0.00011575]
[1765732253109,0.43644126,88930.0,88929.0,0.00011575]
[1765732257632,0.54694888,88930.0,88929.0,0.00011575]
[1765732258001,0.43644126,88930.0,88929.0,0.00011575]
[1765732260635,0.41864126,88930.0,88929.0,0.00011575]
[1765732260839,0.43644126,88930.0,88929.0,0.00011575]
[1765732266204,0.36862287,88930.0,88929.0,0.00011575]
[1765732266452,0.07792287,88930.0,88929.0,0.00011575]
[1765732266891,0.00561287,88930.0,88929.0,0.00011575]
[1765732267090,0.03409287,88930.0,88929.0,0.00011575]
[1765732267316,0.07409287,88930.0,88929.0,0.00011575]
[1765732267755,0.07209287,88930.0,88929.0,0.00011575]
[1765732268180,0.07509287,88930.0,88929.0,0.00011575]
[1765732268583,0.12511126,88930.0,88929.0,0.00011575]
[1765732268947,0.12311126,88930.0,88929.0,0.00011575]
[1765732269148,0.12611126,88930.0,88929.0,0.00011575]
[1765732285566,0.00761287,88930.0,88929.0,0.00011575]
[1765732285886,0.07609287,88930.0,88929.0,0.00011575]
[1765732297344,0.03609287,88930.0,88929.0,0.00011575]
[1765732297514,0.00761287,88930.0,88929.0,0.00011575]
[1765732297753,0.00761287,88930.0,88929.0,0.02058575]
[1765732297880,0.00761287,88930.0,88929.0,0.00011575]
[1765732298702,0.00461287,88930.0,88929.0,0.00011575]
[1765732299100,0.00661287,88930.0,88929.0,0.00011575]
[1765732299583,0.00361287,88930.0,88929.0,0.00011575]
[1765732299822,0.00561287,88930.0,88929.0,0.00011575]
[1765732301441,0.004,88930.0,88929.0,0.00011575]
[1765732302095,0.004,88930.0,88929.0,0.06488575]
[1765732302537,0.004,88930.0,88929.0,0.02531575]
[1765732302743,0.004,88930.0,88929.0,0.00011575]
[1765732304761,0.002,88930.0,88929.0,0.00011575]
[1765732305195,0.003,88930.0,88929.0,0.00011575]
[1765732305565,0.001,88930.0,88929.0,0.00011575]
[1765732305966,0.002,88930.0,88929.0,0.00011575]
[1765732312294,0.07186287,88930.0,88929.0,0.00011575]
[1765732313482,0.03055287,88930.0,88929.0,0.00011575]
[1765732313834,0.00361287,88930.0,88929.0,0.00011575]
[1765732317283,0.00361287,88930.0,88929.0,0.01858575]
[1765732318216,0.00361287,88930.0,88929.0,0.05609575]
[1765732318364,0.00361287,88930.0,88929.0,0.28099426]
[1765732318569,0.00361287,88930.0,88929.0,0.30522426]
[1765732318770,0.002,88930.0,88929.0,0.30522426]
[1765732320172,0.002,88930.0,88929.0,0.08032575]
[1765732320371,0.002,88930.0,88929.0,0.04281575]
[1765732320957,0.002,88930.0,88929.0,0.01858575]
[1765732321178,0.002,88930.0,88929.0,0.00011575]
[1765732321722,0.06672,88930.0,88929.0,0.00011575]
[1765732323726,0.0279,88930.0,88929.0,0.00011575]
[1765732324087,0.002,88930.0,88929.0,0.00011575]